[Event "5th EKA IIFL Investment 2019"]
[Site "Mumbai"]
[Date "2020.01.02"]
[Round "4.57"]
[White "Aradhya, Garg"]
[Black "Gaikwad, Siddhant"]
[Result "1-0"]
[ECO "B52"]
[WhiteElo "2197"]
[BlackElo "2028"]
[Annotator "ChessBase"]
[PlyCount "53"]
[EventDate "2019.12.30"]
[EventType "swiss"]
[EventCountry "IND"]
[SourceTitle "playchess.com"]
[Source "ChessBase"]
[SourceQuality "1"]
[TimeControl "40/5400+30:1800+30"]

1. e4 {[%emt 0:00:00]} c5 {[%emt 0:00:00]} 2. Nf3 {[%emt 0:00:00]} d6 {[%emt 0:00:00]} 3. Bb5+ {[%emt 0:00:00]} Bd7 {[%emt 0:00:03]} 4. Bxd7+ {[%emt 0:05:22]} Nxd7 {[%emt 0:00:06]} 5. O-O {[%emt 0:00:15]} Ngf6 {[%emt 0:00:09]} 6. Qe2 {[%emt 0:01:55]} Rc8 {[%emt 0:03:46]} 7. c3 {[%emt 0:00:51]} e6 {[%emt 0:01:46]} 8. d4 {[%emt 0:03:07]} cxd4 {[%emt 0:07:14]} 9. cxd4 {[%emt 0:00:07]} d5 {[%emt 0:00:10]} 10. e5 {[%emt 0:07:30]} Ne4 {[%emt 0:04:39]} 11. Nbd2 {[%emt 0:00:23]} Nxd2 {[%emt 0:14:33]} 12. Bxd2 {[%emt 0:00:03]} Be7 {[%emt 0:03:13]} 13. Qb5 {[%emt 0:14:45]} Qb6 {[%emt 0:14:58]} 14. a4 {[%emt 0:01:12]} a6 {[%emt 0:05:21]} 15. Qd3 {[%emt 0:00:18]} Nb8 {[%emt 0:11:31]} 16. h4 {[%emt 0:13:36]} h6 {[%emt 0:02:00]} 17. g4 {[%emt 0:06:07]} Qd8 {[%emt 0:04:03]} 18. Kg2 {[%emt 0:05:53]} h5 {[%emt 0:07:53]} 19. gxh5 {[%emt 0:00:38]} Bxh4 {[%emt 0:01:17]} 20. Rh1 {[%emt 0:01:52]} Rxh5 {[%emt 0:05:59]} 21. Qb3 {[%emt 0:11:01]} b6 {[%emt 0:03:32]} 22. Nxh4 {[%emt 0:05:38]} Rxh4 {[%emt 0:00:30]} 23. Qg3 {[%emt 0:00:05]} Rxh1 {[%emt 0:01:32]} 24. Rxh1 {[%emt 0:00:03]} Kd7 {[%emt 0:02:09]} 25. Rh7 {[%emt 0:03:13]} Rc7 {[%emt 0:05:20]} 26. Qxg7 {[%emt 0:03:03]} Qe7 {[%emt 0:00:40]} 27. Bg5 {[%emt 0:00:23]} 1-0

[Event "5th EKA IIFL Investment 2019"]
[Site "Mumbai"]
[Date "2020.01.02"]
[Round "4.58"]
[White "Dere Pushkar"]
[Black "Masango, Spencer"]
[Result "1/2-1/2"]
[ECO "C47"]
[WhiteElo "2061"]
[BlackElo "2181"]
[Annotator "ChessBase"]
[PlyCount "73"]
[EventDate "2019.12.30"]
[EventType "swiss"]
[EventCountry "IND"]
[SourceTitle "playchess.com"]
[Source "ChessBase"]
[SourceQuality "1"]
[TimeControl "40/5400+30:1800+30"]

1. e4 e5 2. Nf3 Nc6 3. Nc3 Nf6 4. a3 d5 5. Bb5 dxe4 6. Nxe5 Bd7 7. Bxc6 Bxc6 8. Qe2 Bd6 9. Nxc6 bxc6 10. Nxe4 O-O 11. Nxd6 Qxd6 12. d3 Rfe8 13. Be3 Nd5 14. O-O Qe5 15. c3 Nxe3 16. fxe3 Qxe3+ 17. Qxe3 Re5 18. Qe4 Rxe4 19. Rad1 Re3 20. Rde1 Rae8 21. Kf2 Rxe1 22. Rxe1 Rxe1 23. Kxe1 f5 24. Kf2 g5 25. Ke3 Kf7 26. b4 Ke6 27. Kd4 Kd6 28. h3 h6 29. c4 Ke6 30. a4 Kd6 31. g3 Ke6 32. Ke3 Ke5 33. d4+ Ke6 34. Kf3 Kd6 35. Ke3 Ke6 36. Kf3 Kd6 37. Ke3 {Ke5 Ke4+} 1/2-1/2

[Event "5th EKA IIFL Investment 2019"]
[Site "Mumbai"]
[Date "2020.01.02"]
[Round "4.59"]
[White "Mahindrakar Indrajeet"]
[Black "Thanki, Hemal Karsanji"]
[Result "0-1"]
[ECO "B22"]
[WhiteElo "2042"]
[BlackElo "2164"]
[Annotator "ChessBase"]
[PlyCount "82"]
[EventDate "2019.12.30"]
[EventType "swiss"]
[EventCountry "IND"]
[SourceTitle "playchess.com"]
[Source "ChessBase"]
[SourceQuality "1"]
[TimeControl "40/5400+30:1800+30"]

1. e4 {[%emt 0:00:00]} c5 {[%emt 0:01:53]} 2. c3 {[%emt 0:03:23]} Nf6 {[%emt 0:00:28]} 3. e5 {[%emt 0:00:09]} Nd5 {[%emt 0:00:04]} 4. d4 {[%emt 0:00:19]} cxd4 {[%emt 0:00:06]} 5. Qxd4 {[%emt 0:00:05]} e6 {[%emt 0:01:38]} 6. Bd3 {[%emt 0:01:22]} Nc6 {[%emt 0:03:17]} 7. Qe4 {[%emt 0:00:01]} f5 {[%emt 0:00:19]} 8. Qe2 {[%emt 0:00:08]} d6 {[%emt 0:01:45]} 9. Nf3 {[%emt 0:01:23]} dxe5 {[%emt 0:00:50]} 10. Nxe5 {[%emt 0:00:06]} Nxe5 11. Qxe5 {[%emt 0:00:04]} Qf6 {[%emt 0:00:49]} 12. Bb5+ {[%emt 0:00:04]} Kf7 {[%emt 0:03:41]} 13. Qe2 {[%emt 0:00:01]} Bd6 {[%emt 0:03:23]} 14. O-O {[%emt 0:00:33]} Rd8 {[%emt 0:10:47]} 15. Rd1 {[%emt 0:01:49]} Bd7 {[%emt 0:04:14]} 16. Bxd7 {[%emt 0:38:44]} Rxd7 {[%emt 0:00:17]} 17. c4 {[%emt 0:03:13]} Nb6 {[%emt 0:02:52]} 18. Nc3 {[%emt 0:04:28]} Rad8 {[%emt 0:04:57]} 19. Rxd6 {[%emt 0:08:28]} Rxd6 {[%emt 0:00:06]} 20. c5 {[%emt 0:00:03]} Qxc3 {[%emt 0:11:17]} 21. cxd6 {[%emt 0:02:15]} Qd4 {[%emt 0:13:54]} 22. g3 {[%emt 0:18:02]} Qxd6 {[%emt 0:02:32]} 23. Bf4 {[%emt 0:00:42]} Qd7 {[%emt 0:01:07]} 24. Rc1 {[%emt 0:01:53]} Nd5 {[%emt 0:02:45]} 25. Be5 {[%emt 0:01:03]} Rc8 {[%emt 0:00:36]} 26. Re1 {[%emt 0:01:31]} Rc6 {[%emt 0:00:38]} 27. h4 {[%emt 0:00:48]} Kg8 {[%emt 0:00:34]} 28. h5 {[%emt 0:00:40]} h6 {[%emt 0:00:05]} 29. Rd1 {[%emt 0:01:05]} a6 {[%emt 0:00:16]} 30. b4 {[%emt 0:01:33]} b5 {[%emt 0:02:21]} 31. Kg2 {[%emt 0:04:35]} Rc4 {[%emt 0:00:36]} 32. a3 {[%emt 0:00:52]} Re4 {[%emt 0:04:49]} 33. Qb2 {[%emt 0:03:15]} Ne3+ {[%emt 0:00:08]} 34. fxe3 {[%emt 0:00:42]} Qxd1 {[%emt 0:00:02]} 35. Bd4 {[%emt 0:01:51]} Qxh5 {[%emt 0:03:26]} 36. Qc2 {[%emt 0:00:27]} e5 {[%emt 0:00:57]} 37. Bc5 {[%emt 0:00:49]} Rc4 {[%emt 0:01:28]} 38. Qd3 {[%emt 0:00:17]} Qg4 {[%emt 0:00:37]} 39. Qd5+ {[%emt 0:00:56]} Kh7 {[%emt 0:00:03]} 40. Qxe5 {[%emt 0:00:00]} Rc2+ {[%emt 0:00:00]} 41. Kg1 {[%emt 0:00:23]} Qd1# {[%emt 0:00:26]} 0-1

[Event "5th EKA IIFL Investment 2019"]
[Site "Mumbai"]
[Date "2020.01.02"]
[Round "4.60"]
[White "Chitlange Sakshi"]
[Black "Anadkat Kartavya"]
[Result "0-1"]
[ECO "A88"]
[WhiteElo "2163"]
[BlackElo "2023"]
[Annotator "ChessBase"]
[PlyCount "96"]
[EventDate "2019.12.30"]
[EventType "swiss"]
[EventCountry "IND"]
[SourceTitle "playchess.com"]
[Source "ChessBase"]
[SourceQuality "1"]
[TimeControl "40/5400+30:1800+30"]

1. d4 {[%emt 0:00:00]} f5 {[%emt 0:00:45]} 2. Nf3 {[%emt 0:01:00]} Nf6 {[%emt 0:00:09]} 3. g3 {[%emt 0:00:11]} g6 {[%emt 0:00:44]} 4. Bg2 {[%emt 0:00:06]} Bg7 {[%emt 0:00:03]} 5. O-O {[%emt 0:00:51]} O-O {[%emt 0:00:03]} 6. c4 {[%emt 0:02:21]} d6 {[%emt 0:00:02]} 7. Nc3 {[%emt 0:00:44]} c6 {[%emt 0:00:01]} 8. Re1 {[%emt 0:05:12]} Qe8 {[%emt 0:14:09]} 9. b3 {[%emt 0:05:36]} Ne4 {[%emt 0:03:42]} 10. Bb2 {[%emt 0:12:35]} Nxc3 {[%emt 0:12:41]} 11. Bxc3 {[%emt 0:00:01]} Nd7 {[%emt 0:00:03]} 12. e4 {[%emt 0:06:58]} f4 {[%emt 0:01:27]} 13. e5 {[%emt 0:00:53]} dxe5 {[%emt 0:08:59]} 14. dxe5 {[%emt 0:01:31]} Nc5 {[%emt 0:01:16]} 15. b4 {[%emt 0:05:27]} Ne6 {[%emt 0:01:08]} 16. Qb3 {[%emt 0:11:33]} Qf7 {[%emt 0:06:13]} 17. Re4 {[%emt 0:04:00]} a5 {[%emt 0:02:20]} 18. Rd1 {[%emt 0:02:51]} axb4 {[%emt 0:01:04]} 19. Bxb4 {[%emt 0:00:33]} b6 {[%emt 0:02:52]} 20. g4 {[%emt 0:01:41]} c5 {[%emt 0:05:56]} 21. Bc3 {[%emt 0:01:13]} Bb7 {[%emt 0:00:34]} 22. Ree1 {[%emt 0:01:16]} Rfb8 {[%emt 0:01:37]} 23. Rd7 {[%emt 0:08:15]} Bc8 {[%emt 0:03:06]} 24. Rd2 {[%emt 0:02:16]} Qe8 {[%emt 0:01:53]} 25. Qd1 {[%emt 0:08:47]} Bb7 {[%emt 0:01:25]} 26. Rb2 Bc6 {[%emt 0:01:00]} 27. Qb1 {[%emt 0:02:23]} Ra6 {[%emt 0:02:06]} 28. Rd1 {[%emt 0:00:50]} Qc8 {[%emt 0:00:29]} 29. h3 {[%emt 0:02:38]} Qb7 {[%emt 0:00:58]} 30. Ne1 {[%emt 0:02:08]} Bxg2 {[%emt 0:03:34]} 31. Nxg2 {[%emt 0:00:01]} Ng5 {[%emt 0:00:17]} 32. Qd3 {[%emt 0:02:52]} Ra3 {[%emt 0:02:55]} 33. Nxf4 {[%emt 0:02:49]} Rxc3 {[%emt 0:01:00]} 34. Qxc3 {[%emt 0:00:24]} Bxe5 {[%emt 0:00:26]} 35. Qc2 {[%emt 0:03:01]} Bxf4 {[%emt 0:01:48]} 36. Qd3 {[%emt 0:01:01]} Nf3+ {[%emt 0:01:05]} 37. Kf1 {[%emt 0:00:24]} Nd4 {[%emt 0:00:04]} 38. Kg1 {[%emt 0:00:29]} Rd8 {[%emt 0:00:36]} 39. Qb1 {[%emt 0:01:19]} Nf3+ {[%emt 0:00:25]} 40. Kf1 {[%emt 0:00:00]} Nd2+ {[%emt 0:00:00]} 41. Kg1 {[%emt 0:02:44]} Nxb1 {[%emt 0:00:54]} 42. Rxd8+ {[%emt 0:00:02]} Kf7 {[%emt 0:00:01]} 43. Rxb1 {[%emt 0:00:09]} Bd6 {[%emt 0:00:44]} 44. Re1 {[%emt 0:01:07]} Qf3 {[%emt 0:00:45]} 45. Re3 {[%emt 0:00:12]} Qf4 {[%emt 0:01:11]} 46. Rc3 {[%emt 0:01:16]} Be5 {[%emt 0:01:05]} 47. Re3 {[%emt 0:01:31]} Bd4 {[%emt 0:00:20]} 48. Re2 {[%emt 0:00:16]} Qf3 0-1

[Event "5th EKA IIFL Investment 2019"]
[Site "Mumbai"]
[Date "2020.01.02"]
[Round "4.61"]
[White "Pandey Srishti"]
[Black "Iasman, Inna"]
[Result "1-0"]
[ECO "B18"]
[WhiteElo "2162"]
[BlackElo "1756"]
[Annotator "ChessBase"]
[PlyCount "73"]
[EventDate "2019.12.30"]
[EventType "swiss"]
[EventCountry "IND"]
[SourceTitle "playchess.com"]
[Source "ChessBase"]
[SourceQuality "1"]
[TimeControl "40/5400+30:1800+30"]

1. e4 {[%emt 0:00:00]} c6 {[%emt 0:00:00]} 2. d4 {[%emt 0:00:00]} d5 {[%emt 0:00:00]} 3. Nd2 {[%emt 0:00:00]} dxe4 {[%emt 0:00:21]} 4. Nxe4 {[%emt 0:00:00]} Bf5 {[%emt 0:00:38]} 5. Ng3 {[%emt 0:00:04]} Bg6 {[%emt 0:00:10]} 6. h4 {[%emt 0:00:03]} h6 {[%emt 0:00:19]} 7. Nh3 {[%emt 0:00:05]} Nf6 {[%emt 0:01:14]} 8. Nf4 {[%emt 0:00:12]} Bh7 {[%emt 0:00:24]} 9. Bc4 {[%emt 0:00:04]} e6 {[%emt 0:04:24]} 10. c3 {[%emt 0:00:30]} Nbd7 {[%emt 0:02:17]} 11. O-O {[%emt 0:00:17]} Nb6 {[%emt 0:02:04]} 12. Bb3 {[%emt 0:01:23]} Nbd5 {[%emt 0:02:29]} 13. Nxd5 {[%emt 0:00:05]} cxd5 {[%emt 0:06:17]} 14. Nh5 {[%emt 0:01:19]} a6 {[%emt 0:05:31]} 15. Re1 {[%emt 0:06:00]} Nxh5 {[%emt 0:08:44]} 16. Qxh5 {[%emt 0:00:17]} Be7 {[%emt 0:01:28]} 17. Rxe6 {[%emt 0:11:17]} O-O {[%emt 0:03:57]} 18. Re5 {[%emt 0:02:02]} Bxh4 {[%emt 0:05:31]} 19. Rxd5 {[%emt 0:03:01]} Qf6 {[%emt 0:09:35]} 20. g3 {[%emt 0:03:31]} Bxg3 {[%emt 0:03:07]} 21. fxg3 {[%emt 0:03:25]} Bd3 {[%emt 0:02:20]} 22. Bf4 {[%emt 0:01:06]} Bg6 {[%emt 0:03:09]} 23. Qh4 {[%emt 0:00:48]} Qc6 {[%emt 0:01:03]} 24. Re1 {[%emt 0:07:33]} Kh7 {[%emt 0:05:19]} 25. Rd6 {[%emt 0:03:10]} Qb5 {[%emt 0:01:27]} 26. Rd5 {[%emt 0:02:53]} Qd3 {[%emt 0:02:38]} 27. Rde5 {[%emt 0:00:16]} Rad8 {[%emt 0:02:23]} 28. Qh2 {[%emt 0:00:26]} Qf3 {[%emt 0:01:04]} 29. Qe2 {[%emt 0:02:57]} Qc6 {[%emt 0:00:12]} 30. d5 {[%emt 0:00:11]} Qf6 {[%emt 0:03:11]} 31. Re7 {[%emt 0:00:59]} Qf5 {[%emt 0:01:42]} 32. Bc7 {[%emt 0:00:15]} Rc8 {[%emt 0:01:22]} 33. d6 {[%emt 0:00:20]} Qc5+ {[%emt 0:03:02]} 34. Qe3 {[%emt 0:00:07]} Qc6 {[%emt 0:01:46]} 35. Bd1 {[%emt 0:00:36]} Bf5 {[%emt 0:01:05]} 36. Bf3 {[%emt 0:00:43]} Qb5 {[%emt 0:00:54]} 37. Re5 {[%emt 0:00:08]} 1-0

[Event "5th EKA IIFL Investment 2019"]
[Site "Mumbai"]
[Date "2020.01.02"]
[Round "4.62"]
[White "Ghelani Dhairya"]
[Black "Soham Datar"]
[Result "1/2-1/2"]
[ECO "A50"]
[WhiteElo "2027"]
[BlackElo "2145"]
[Annotator "ChessBase"]
[PlyCount "98"]
[EventDate "2019.12.30"]
[EventType "swiss"]
[EventCountry "IND"]
[SourceTitle "playchess.com"]
[Source "ChessBase"]
[SourceQuality "1"]
[TimeControl "40/5400+30:1800+30"]

1. d4 {[%emt 0:00:00]} Nf6 {[%emt 0:03:24]} 2. c4 {[%emt 0:00:00]} c6 {[%emt 0:00:03]} 3. Nc3 {[%emt 0:00:00]} d5 {[%emt 0:00:03]} 4. cxd5 {[%emt 0:00:00]} cxd5 {[%emt 0:00:23]} 5. Bf4 {[%emt 0:00:00]} Nc6 {[%emt 0:00:25]} 6. e3 {[%emt 0:00:00]} a6 {[%emt 0:00:10]} 7. Bd3 {[%emt 0:00:08]} Bg4 {[%emt 0:03:03]} 8. Nge2 {[%emt 0:00:06]} e6 {[%emt 0:02:29]} 9. O-O {[%emt 0:01:15]} Be7 {[%emt 0:03:46]} 10. f3 {[%emt 0:03:38]} Bh5 {[%emt 0:00:19]} 11. Na4 {[%emt 0:00:50]} O-O {[%emt 0:05:10]} 12. Nc5 {[%emt 0:02:58]} Bxc5 {[%emt 0:05:30]} 13. dxc5 {[%emt 0:00:02]} e5 {[%emt 0:00:12]} 14. Bg5 {[%emt 0:01:04]} Bg6 {[%emt 0:06:55]} 15. Bxg6 {[%emt 0:25:04]} hxg6 {[%emt 0:01:50]} 16. Qb3 {[%emt 0:01:42]} Qd7 {[%emt 0:11:56]} 17. Rad1 {[%emt 0:10:48]} Rfd8 {[%emt 0:04:38]} 18. Nc3 {[%emt 0:06:04]} Ne7 {[%emt 0:07:00]} 19. Bxf6 {[%emt 0:09:27]} gxf6 {[%emt 0:00:26]} 20. Nxd5 {[%emt 0:00:15]} Nxd5 {[%emt 0:00:15]} 21. e4 {[%emt 0:00:04]} Qc7 {[%emt 0:05:38]} 22. Rxd5 {[%emt 0:00:17]} Rxd5 {[%emt 0:00:02]} 23. Qxd5 {[%emt 0:00:01]} Rd8 {[%emt 0:00:02]} 24. Qc4 {[%emt 0:00:15]} Rd2 {[%emt 0:01:30]} 25. Rf2 {[%emt 0:03:44]} Rd1+ {[%emt 0:02:20]} 26. Rf1 {[%emt 0:00:03]} Rd2 {[%emt 0:00:18]} 27. Rf2 {[%emt 0:01:27]} Rd1+ {[%emt 0:01:37]} 28. Rf1 {[%emt 0:00:01]} Rd2 {[%emt 0:00:15]} 29. Qc3 {[%emt 0:01:12]} Qd7 {[%emt 0:00:10]} 30. Rf2 {[%emt 0:05:54]} Rd3 {[%emt 0:03:08]} 31. Qc4 {[%emt 0:00:03]} Rd1+ {[%emt 0:00:30]} 32. Rf1 {[%emt 0:00:14]} Rd4 {[%emt 0:03:49]} 33. Qc3 {[%emt 0:00:05]} Qa4 {[%emt 0:01:27]} 34. a3 {[%emt 0:02:06]} Qb5 {[%emt 0:07:27]} 35. b4 {[%emt 0:01:49]} Rd3 {[%emt 0:00:15]} 36. Qb2 {[%emt 0:00:47]} Qa4 {[%emt 0:01:38]} 37. Ra1 {[%emt 0:00:54]} Rb3 {[%emt 0:01:14]} 38. Qc1 {[%emt 0:01:09]} a5 {[%emt 0:03:12]} 39. Rb1 {[%emt 0:08:32]} Rxa3 {[%emt 0:08:09]} 40. bxa5 {[%emt 0:00:00]} Qd4+ {[%emt 0:00:00]} 41. Kh1 {[%emt 0:00:33]} Rxa5 {[%emt 0:03:46]} 42. c6 {[%emt 0:02:32]} bxc6 {[%emt 0:01:06]} 43. Qxc6 {[%emt 0:00:30]} Ra1 {[%emt 0:04:37]} 44. Qc1 {[%emt 0:01:41]} Rxb1 {[%emt 0:00:05]} 45. Qxb1 {[%emt 0:00:02]} Kg7 {[%emt 0:00:05]} 46. h3 {[%emt 0:00:19]} Qd2 {[%emt 0:00:09]} 47. Qb5 {[%emt 0:01:47]} Qc1+ {[%emt 0:00:09]} 48. Kh2 {[%emt 0:00:01]} Qf4+ {[%emt 0:00:07]} 49. Kg1 {[%emt 0:00:01]} Qc1+ {[%emt 0:00:54]} 1/2-1/2

[Event "5th EKA IIFL Investment 2019"]
[Site "Mumbai"]
[Date "2020.01.03"]
[Round "5.5"]
[White "Mendonca, Leon Luke"]
[Black "Mirzoev, Azer"]
[Result "1/2-1/2"]
[ECO "D24"]
[WhiteElo "2398"]
[BlackElo "2457"]
[Annotator "RC"]
[PlyCount "69"]
[EventDate "2019.12.30"]
[EventType "swiss"]
[EventCountry "IND"]
[SourceTitle "playchess.com"]
[Source "ChessBase"]
[SourceQuality "1"]
[TimeControl "40/5400+30:1800+30"]

1. d4 {[%emt 0:00:00]} d5 {[%emt 0:02:36]} 2. c4 {[%emt 0:00:00]} dxc4 {[%emt 0:00:06]} 3. Nf3 {[%emt 0:00:07]} Nf6 {[%emt 0:00:48]} 4. Nc3 {[%emt 0:03:54]} a6 {[%emt 0:01:42]} 5. e4 {[%emt 0:00:04]} b5 {[%emt 0:00:07]} 6. e5 {[%emt 0:00:05]} Nd5 {[%emt 0:00:09]} 7. a4 {[%emt 0:00:11]} e6 {[%emt 0:06:56]} 8. axb5 {[%emt 0:02:11]} Nb6 {[%emt 0:00:02]} 9. Be2 {[%emt 0:01:58]} Be7 {[%emt 0:00:07]} 10. O-O {[%emt 0:01:02]} O-O {[%emt 0:00:09]} 11. Qd2 {[%emt 0:01:06]} Bb7 {[%emt 0:01:53]} 12. Qf4 {[%emt 0:01:33]} axb5 {[%emt 0:00:49]} 13. Rxa8 {[%emt 0:00:09]} Bxa8 {[%emt 0:00:08]} 14. Nxb5 {[%emt 0:00:13]} N8d7 15. Rd1 {[%emt 0:04:24]} Re8 {[%emt 0:18:35]} 16. Ng5 {[%emt 0:08:50]} Bxg5 {[%emt 0:00:18]} 17. Qxg5 {[%emt 0:00:02]} Qxg5 {[%emt 0:00:13]} 18. Bxg5 {[%emt 0:00:04]} Rc8 {[%emt 0:00:11]} 19. Ra1 {[%emt 0:10:47]} h6 {[%emt 0:01:44]} 20. Be3 {[%emt 0:13:59]} Bc6 {[%emt 0:01:16]} 21. Nc3 {[%emt 0:11:45]} Rb8 {[%emt 0:02:29]} 22. Bc1 {[%emt 0:00:28]} Nf8 {[%emt 0:00:54]} 23. Ra7 {[%emt 0:07:45]} Nd5 {[%emt 0:05:51]} 24. Ra3 {[%emt 0:08:08]} Nb6 {[%emt 0:00:48]} 25. Ra7 {[%emt 0:02:55]} Nd5 {[%emt 0:00:07]} 26. Ra3 {[%emt 0:00:49]} Nb6 {[%emt 0:00:06]} 27. f3 {[%emt 0:03:01]} Ng6 {[%emt 0:02:31]} 28. Ra7 {[%emt 0:01:33]} Rc8 {[%emt 0:01:05]} 29. Kf2 {[%emt 0:03:17]} Ne7 {[%emt 0:00:06]} 30. g4 {[%emt 0:02:08]} Be8 {[%emt 0:03:15]} 31. Be3 {[%emt 0:02:06]} Nc6 {[%emt 0:00:14]} 32. Rb7 {[%emt 0:01:19]} Na5 {[%emt 0:00:07]} 33. Ra7 {[%emt 0:00:09]} Nc6 {[%emt 0:00:01]} 34. Rb7 {[%emt 0:01:09]} Na5 {[%emt 0:00:05]} 35. Ra7 {[%emt 0:00:05]} 1/2-1/2

[Event "5th EKA IIFL Investment 2019"]
[Site "Mumbai"]
[Date "2020.01.03"]
[Round "5.7"]
[White "Neelash Saha"]
[Black "Gupta, Abhijeet"]
[Result "0-1"]
[ECO "D70"]
[WhiteElo "2356"]
[BlackElo "2611"]
[Annotator "RC"]
[PlyCount "76"]
[EventDate "2019.12.30"]
[EventType "swiss"]
[EventCountry "IND"]
[SourceTitle "playchess.com"]
[Source "ChessBase"]
[SourceQuality "1"]
[TimeControl "40/5400+30:1800+30"]

1. d4 Nf6 {[%emt 0:02:00]} 2. c4 {[%emt 0:00:00]} g6 {[%emt 0:00:05]} 3. Nf3 {[%emt 0:00:00]} Bg7 {[%emt 0:00:06]} 4. e3 {[%emt 0:00:00]} O-O {[%emt 0:00:16]} 5. Be2 {[%emt 0:00:00]} c5 {[%emt 0:00:53]} 6. dxc5 {[%emt 0:07:50]} Na6 {[%emt 0:00:49]} 7. Nc3 {[%emt 0:01:19]} Nxc5 {[%emt 0:00:06]} 8. O-O {[%emt 0:00:09]} b6 {[%emt 0:01:04]} 9. Nd2 {[%emt 0:14:57]} Bb7 {[%emt 0:01:12]} 10. Rb1 {[%emt 0:06:26]} Rc8 {[%emt 0:05:24]} 11. b4 {[%emt 0:19:53]} Nce4 {[%emt 0:01:34]} 12. Bb2 {[%emt 0:00:34]} Nxc3 {[%emt 0:04:26]} 13. Bxc3 {[%emt 0:00:05]} d5 {[%emt 0:00:27]} 14. Bf3 {[%emt 0:06:51]} Ba8 {[%emt 0:00:18]} 15. Qe2 {[%emt 0:03:03]} dxc4 {[%emt 0:02:20]} 16. Bxa8 {[%emt 0:00:10]} Rxa8 {[%emt 0:00:05]} 17. Nxc4 {[%emt 0:01:06]} Rc8 {[%emt 0:00:29]} 18. Rbc1 {[%emt 0:06:41]} Qd5 {[%emt 0:02:41]} 19. Bd4 {[%emt 0:00:16]} Qb5 {[%emt 0:02:43]} 20. a3 {[%emt 0:07:07]} Rc7 {[%emt 0:04:16]} 21. Qd3 {[%emt 0:04:16]} Rfc8 {[%emt 0:10:05]} 22. Ne5 {[%emt 0:00:19]} Qxd3 {[%emt 0:00:34]} 23. Nxd3 {[%emt 0:00:06]} Ne4 {[%emt 0:00:09]} 24. Rxc7 {[%emt 0:05:36]} Rxc7 {[%emt 0:00:04]} 25. Bxg7 {[%emt 0:00:05]} Kxg7 {[%emt 0:00:04]} 26. Rc1 {[%emt 0:00:09]} Rxc1+ {[%emt 0:01:20]} 27. Nxc1 {[%emt 0:00:05]} Kf6 {[%emt 0:00:03]} 28. Kf1 {[%emt 0:02:25]} Nc3 {[%emt 0:04:41]} 29. Ke1 {[%emt 0:08:16]} Ke6 {[%emt 0:01:16]} 30. Ne2 {[%emt 0:00:29]} Nb1 {[%emt 0:02:19]} 31. Nd4+ {[%emt 0:04:47]} Kd5 {[%emt 0:00:14]} 32. Nb5 {[%emt 0:00:13]} a6 {[%emt 0:00:14]} 33. Nc7+ {[%emt 0:00:11]} Kc6 {[%emt 0:00:04]} 34. Nxa6 {[%emt 0:00:06]} Nxa3 {[%emt 0:00:06]} 35. Nb8+ {[%emt 0:00:31]} Kd6 {[%emt 0:01:44]} 36. b5 {[%emt 0:00:53]} Nxb5 {[%emt 0:00:12]} 37. Na6 {[%emt 0:00:06]} Nc3 {[%emt 0:03:00]} 38. f3 {[%emt 0:00:17]} Na2 {[%emt 0:00:18]} 0-1

[Event "5th EKA IIFL Investment 2019"]
[Site "Mumbai"]
[Date "2020.01.03"]
[Round "5.10"]
[White "Nigmatov, Ortik"]
[Black "Nitin, S.."]
[Result "0-1"]
[ECO "B23"]
[WhiteElo "2474"]
[BlackElo "2329"]
[Annotator "ChessBase"]
[PlyCount "83"]
[EventDate "2019.12.30"]
[EventType "swiss"]
[EventCountry "IND"]
[SourceTitle "playchess.com"]
[Source "ChessBase"]
[SourceQuality "1"]
[TimeControl "40/5400+30:1800+30"]

1. e4 {[%emt 0:00:00]} c5 {[%emt 0:00:06]} 2. Nc3 {[%emt 0:00:00]} e6 {[%emt 0:01:08]} 3. g3 {[%emt 0:00:29]} Nc6 {[%emt 0:00:15]} 4. Bg2 {[%emt 0:00:07]} g6 {[%emt 0:00:10]} 5. d3 {[%emt 0:07:42]} Bg7 {[%emt 0:00:18]} 6. f4 {[%emt 0:01:58]} d6 {[%emt 0:02:04]} 7. Be3 {[%emt 0:08:55]} Nge7 {[%emt 0:00:46]} 8. Nf3 {[%emt 0:03:04]} Nd4 {[%emt 0:05:06]} 9. O-O {[%emt 0:00:12]} O-O {[%emt 0:00:06]} 10. Qd2 Rb8 {[%emt 0:00:52]} 11. g4 {[%emt 0:04:28]} f5 {[%emt 0:17:20]} 12. gxf5 {[%emt 0:00:07]} exf5 {[%emt 0:00:59]} 13. Rae1 {[%emt 0:01:43]} b5 {[%emt 0:04:11]} 14. Bxd4 {[%emt 0:24:33]} cxd4 {[%emt 0:01:02]} 15. Nd5 {[%emt 0:00:13]} fxe4 {[%emt 0:08:29]} 16. Nxe7+ {[%emt 0:03:47]} Qxe7 {[%emt 0:00:06]} 17. dxe4 Qf6 {[%emt 0:01:35]} 18. e5 {[%emt 0:15:43]} Qxf4 {[%emt 0:09:59]} 19. Qxf4 {[%emt 0:00:06]} Rxf4 {[%emt 0:00:05]} 20. exd6 {[%emt 0:04:05]} Bf5 {[%emt 0:06:35]} 21. Ng5 {[%emt 0:07:31]} Rxf1+ {[%emt 0:00:41]} 22. Rxf1 {[%emt 0:06:26]} Bh6 {[%emt 0:13:20]} 23. Bd5+ {[%emt 0:00:36]} Kg7 {[%emt 0:00:08]} 24. Nf7 {[%emt 0:03:27]} Be3+ {[%emt 0:02:03]} 25. Kg2 {[%emt 0:00:01]} Rf8 {[%emt 0:02:11]} 26. Rxf5 {[%emt 0:05:19]} gxf5 {[%emt 0:00:16]} 27. d7 {[%emt 0:00:33]} d3 {[%emt 0:00:08]} 28. cxd3 {[%emt 0:00:39]} Bb6 {[%emt 0:00:09]} 29. Nd6 {[%emt 0:01:41]} Kf6 {[%emt 0:01:37]} 30. Nxb5 {[%emt 0:00:36]} Ke7 {[%emt 0:02:07]} 31. Kf3 {[%emt 0:00:53]} Kxd7 {[%emt 0:00:22]} 32. b3 {[%emt 0:00:34]} Re8 {[%emt 0:02:41]} 33. Bc4 {[%emt 0:00:29]} Re1 {[%emt 0:00:20]} 34. Nc3 {[%emt 0:00:29]} Kd6 {[%emt 0:01:05]} 35. Ne2 {[%emt 0:00:20]} Rf1+ {[%emt 0:02:00]} 36. Kg3 {[%emt 0:00:05]} Be3 {[%emt 0:00:27]} 37. d4 {[%emt 0:00:28]} Rf2 {[%emt 0:01:28]} 38. h3 {[%emt 0:00:15]} h5 {[%emt 0:01:11]} 39. Kh4 {[%emt 0:01:06]} Rg2 {[%emt 0:00:29]} 40. Kxh5 {[%emt 0:00:00]} Bd2 {[%emt 0:00:00]} 41. d5 {[%emt 0:02:53]} Ke5 {[%emt 0:01:52]} 42. d6 {[%emt 0:00:46]} 0-1